[Event "*** Titled Tuesday Blitz"]
[Site "Chess.com"]
[Date "2021.02.02"]
[Round "4"]
[White "LamaChampetre"]
[Black "Eternauta2400"]
[Result "1-0"]
[WhiteElo "2219"]
[BlackElo "2453"]
[TimeControl "180+1"]
[EndTime "10:41:52 PST"]
[Termination "LamaChampetre won on time"]

1. d4 {[%clk 0:03:00.9]} 1... d5 {[%clk 0:02:57.3]} 2. c4 {[%clk 0:03:00.1]}
2... e6 {[%clk 0:02:57.1]} 3. Nf3 {[%clk 0:03:00]} 3... Nf6 {[%clk 0:02:56.9]}
4. g3 {[%clk 0:02:59.9]} 4... Nbd7 {[%clk 0:02:55.9]} 5. Bg2 {[%clk 0:02:57.5]}
5... b6 {[%clk 0:02:55.5]} 6. Qa4 {[%clk 0:02:42.3]} 6... Bb7 {[%clk 0:02:52]}
7. Ne5 {[%clk 0:02:40.5]} 7... c5 {[%clk 0:02:43.2]} 8. O-O {[%clk 0:02:11.1]}
8... Qc7 {[%clk 0:02:38.1]} 9. Bf4 {[%clk 0:02:07.3]} 9... Bd6 {[%clk
0:02:36.8]} 10. Nc3 {[%clk 0:01:58.6]} 10... a6 {[%clk 0:02:04.3]} 11. cxd5
{[%clk 0:01:51.9]} 11... Nxd5 {[%clk 0:02:01.6]} 12. Nxd5 {[%clk 0:01:47.9]}
12... Bxd5 {[%clk 0:02:00.9]} 13. e4 {[%clk 0:01:47]} 13... Bxe5 {[%clk
0:01:50.4]} 14. exd5 {[%clk 0:01:31.8]} 14... Bxf4 {[%clk 0:01:45.1]} 15. dxe6
{[%clk 0:01:27.2]} 15... fxe6 {[%clk 0:01:39.3]} 16. Bxa8 {[%clk 0:01:20.5]}
16... O-O {[%clk 0:01:27.4]} 17. Bg2 {[%clk 0:01:19.6]} 17... Bd6 {[%clk
0:01:19.8]} 18. Rac1 {[%clk 0:01:14.8]} 18... b5 {[%clk 0:01:15.7]} 19. Qxa6
{[%clk 0:01:10.3]} 19... Rb8 {[%clk 0:00:57.3]} 20. Qc6 {[%clk 0:01:05.4]} 20...
c4 {[%clk 0:00:50.9]} 21. Qe4 {[%clk 0:00:50.9]} 21... Re8 {[%clk 0:00:34.5]}
22. Bh3 {[%clk 0:00:46]} 22... Nf6 {[%clk 0:00:24.4]} 23. Bxe6+ {[%clk
0:00:36.4]} 23... Kh8 {[%clk 0:00:23.9]} 24. Qf5 {[%clk 0:00:32.4]} 24... h5
{[%clk 0:00:19.8]} 25. Rfe1 {[%clk 0:00:30.1]} 25... h4 {[%clk 0:00:18.9]} 26.
Bd5 {[%clk 0:00:21.1]} 26... Rf8 {[%clk 0:00:13.5]} 27. Qh3 {[%clk 0:00:16.9]}
27... g5 {[%clk 0:00:08.5]} 28. Re6 {[%clk 0:00:16.1]} 28... Nh5 {[%clk
0:00:03.5]} 29. Rce1 {[%clk 0:00:14.3]} 29... Rg8 {[%clk 0:00:01.2]} 30. Rh6+
{[%clk 0:00:14]} 1-0

[Event "*** Titled Tuesday Blitz"]
[Site "Chess.com"]
[Date "2021.02.02"]
[Round "4"]
[White "HanSchut"]
[Black "Natalya_Buksa"]
[Result "1-0"]
[WhiteElo "2280"]
[BlackElo "2558"]
[TimeControl "180+1"]
[EndTime "10:41:53 PST"]
[Termination "HanSchut won by checkmate"]

1. e4 {[%clk 0:03:00.9]} 1... c5 {[%clk 0:02:58.2]} 2. Nf3 {[%clk 0:03:01.2]}
2... Nc6 {[%clk 0:02:57.5]} 3. d4 {[%clk 0:03:01.4]} 3... cxd4 {[%clk
0:02:57.6]} 4. Nxd4 {[%clk 0:03:02.3]} 4... Nf6 {[%clk 0:02:58.2]} 5. Nc3 {[%clk
0:03:01.7]} 5... e5 {[%clk 0:02:57.7]} 6. Ndb5 {[%clk 0:03:02.2]} 6... d6 {[%clk
0:02:54.8]} 7. Nd5 {[%clk 0:03:02.4]} 7... Nxd5 {[%clk 0:02:54.2]} 8. exd5
{[%clk 0:03:03.3]} 8... Nb8 {[%clk 0:02:54.9]} 9. Qf3 {[%clk 0:03:03.2]} 9... a6
{[%clk 0:02:49.1]} 10. Qa3 {[%clk 0:03:01.4]} 10... Be7 {[%clk 0:02:49.5]} 11.
Bg5 {[%clk 0:03:01.8]} 11... f6 {[%clk 0:02:49.2]} 12. Bd2 {[%clk 0:03:00.9]}
12... O-O {[%clk 0:02:49.4]} 13. Bb4 {[%clk 0:03:01.5]} 13... axb5 {[%clk
0:02:37.8]} 14. Qxa8 {[%clk 0:03:02.4]} 14... Na6 {[%clk 0:02:38.2]} 15. a3
{[%clk 0:02:46.5]} 15... Qb6 {[%clk 0:02:32.6]} 16. Bd2 {[%clk 0:02:25.8]} 16...
Bf5 {[%clk 0:02:28]} 17. Be3 {[%clk 0:02:26]} 17... Qa5+ {[%clk 0:02:03.6]} 18.
b4 {[%clk 0:01:52.1]} 18... Qc7 {[%clk 0:02:02.7]} 19. Qa7 {[%clk 0:01:51.4]}
19... Qc3+ {[%clk 0:02:02.5]} 20. Ke2 {[%clk 0:01:36.2]} 20... Qxa1 {[%clk
0:01:41.5]} 21. Qxb7 {[%clk 0:01:35.6]} 21... Bxc2 {[%clk 0:01:26.8]} 22. f3
{[%clk 0:01:28.8]} 22... Re8 {[%clk 0:00:58.3]} 23. Qxa6 {[%clk 0:01:21]} 23...
f5 {[%clk 0:00:58.3]} 24. Qxb5 {[%clk 0:01:15.9]} 24... Kf8 {[%clk 0:00:52.7]}
25. Kf2 {[%clk 0:01:16.1]} 25... f4 {[%clk 0:00:49.2]} 26. Qxe8+ {[%clk
0:01:14.6]} 26... Kxe8 {[%clk 0:00:43.3]} 27. Bb5+ {[%clk 0:01:15.2]} 27... Kd8
{[%clk 0:00:42]} 28. Rxa1 {[%clk 0:01:15.8]} 28... fxe3+ {[%clk 0:00:42.6]} 29.
Kxe3 {[%clk 0:01:11.7]} 29... Bg5+ {[%clk 0:00:43]} 30. Ke2 {[%clk 0:01:06.7]}
30... Kc7 {[%clk 0:00:43.1]} 31. a4 {[%clk 0:01:01.5]} 31... Kb6 {[%clk
0:00:43.3]} 32. Bd3 {[%clk 0:00:58.8]} 32... Bb3 {[%clk 0:00:43]} 33. a5+ {[%clk
0:00:57]} 33... Ka7 {[%clk 0:00:42.7]} 34. b5 {[%clk 0:00:47.4]} 34... Bxd5
{[%clk 0:00:42.5]} 35. b6+ {[%clk 0:00:48]} 35... Kb7 {[%clk 0:00:39.6]} 36. Be4
{[%clk 0:00:48.2]} 36... Bxe4 {[%clk 0:00:38.6]} 37. fxe4 {[%clk 0:00:49.1]}
37... Bd8 {[%clk 0:00:37.8]} 38. Kd3 {[%clk 0:00:45.9]} 38... Kc6 {[%clk
0:00:36]} 39. Kc4 {[%clk 0:00:46.3]} 39... h5 {[%clk 0:00:35]} 40. h3 {[%clk
0:00:43.9]} 40... h4 {[%clk 0:00:34.8]} 41. Rc1 {[%clk 0:00:30.9]} 41... Bg5
{[%clk 0:00:31.8]} 42. Rc2 {[%clk 0:00:28.6]} 42... Be3 {[%clk 0:00:31.9]} 43.
Kb4+ {[%clk 0:00:27.4]} 43... Kb7 {[%clk 0:00:31]} 44. Kb5 {[%clk 0:00:26.5]}
44... g5 {[%clk 0:00:29.4]} 45. Rc7+ {[%clk 0:00:26.2]} 45... Kb8 {[%clk
0:00:29.7]} 46. a6 {[%clk 0:00:23.3]} 46... Bd4 {[%clk 0:00:27.7]} 47. Kc6
{[%clk 0:00:18]} 47... g4 {[%clk 0:00:24.9]} 48. a7+ {[%clk 0:00:17]} 48... Ka8
{[%clk 0:00:25.5]} 49. Rc8# {[%clk 0:00:17.5]} 1-0

[Event "*** Titled Tuesday Blitz"]
[Site "Chess.com"]
[Date "2021.02.02"]
[Round "4"]
[White "ParvizGasimov"]
[Black "politeplayer"]
[Result "1-0"]
[WhiteElo "2411"]
[BlackElo "2205"]
[TimeControl "180+1"]
[EndTime "10:41:53 PST"]
[Termination "ParvizGasimov won by resignation"]

1. e4 {[%clk 0:03:00.9]} 1... e5 {[%clk 0:02:58.2]} 2. Bc4 {[%clk 0:02:59.8]}
2... Nf6 {[%clk 0:02:58.2]} 3. d3 {[%clk 0:03:00.7]} 3... Nc6 {[%clk 0:02:57.3]}
4. Nf3 {[%clk 0:03:01.6]} 4... Be7 {[%clk 0:02:54.6]} 5. O-O {[%clk 0:02:59.8]}
5... d6 {[%clk 0:02:54.9]} 6. a4 {[%clk 0:02:58.7]} 6... Bg4 {[%clk 0:02:53.4]}
7. c3 {[%clk 0:02:56.8]} 7... O-O {[%clk 0:02:51.6]} 8. a5 {[%clk 0:02:56.3]}
8... a6 {[%clk 0:02:50.9]} 9. Nbd2 {[%clk 0:02:56.8]} 9... Kh8 {[%clk
0:02:49.9]} 10. Re1 {[%clk 0:02:57]} 10... Ng8 {[%clk 0:02:44.5]} 11. h3 {[%clk
0:02:54.5]} 11... Bh5 {[%clk 0:02:40.8]} 12. g4 {[%clk 0:02:53.7]} 12... Bg6
{[%clk 0:02:40.6]} 13. Nf1 {[%clk 0:02:51.2]} 13... f6 {[%clk 0:02:33.1]} 14.
Ng3 {[%clk 0:02:45.5]} 14... Bf7 {[%clk 0:02:32.3]} 15. Bxf7 {[%clk 0:02:44.9]}
15... Rxf7 {[%clk 0:02:32.3]} 16. Qb3 {[%clk 0:02:45]} 16... Qe8 {[%clk
0:02:21.3]} 17. Qxb7 {[%clk 0:02:43.4]} 17... Bf8 {[%clk 0:02:06.2]} 18. d4
{[%clk 0:02:29.8]} 18... exd4 {[%clk 0:01:58.2]} 19. cxd4 {[%clk 0:02:30.7]}
19... Rb8 {[%clk 0:01:49.1]} 20. Qxa6 {[%clk 0:02:28.2]} 20... Rb3 {[%clk
0:01:49.1]} 21. Be3 {[%clk 0:02:14.7]} 21... Rxb2 {[%clk 0:01:44.5]} 22. Qc4
{[%clk 0:02:02.7]} 22... Rb4 {[%clk 0:01:15.6]} 23. Qc3 {[%clk 0:01:59.2]} 23...
Rb8 {[%clk 0:01:07.7]} 24. a6 {[%clk 0:01:53.9]} 24... Na7 {[%clk 0:00:57]} 25.
d5 {[%clk 0:01:47]} 25... c5 {[%clk 0:00:56.2]} 26. dxc6 {[%clk 0:01:43.3]}
26... Qxc6 {[%clk 0:00:52.5]} 27. Rec1 {[%clk 0:01:38.1]} 27... Qa8 {[%clk
0:00:43.2]} 28. Nf5 {[%clk 0:01:32]} 28... d5 {[%clk 0:00:38.8]} 29. e5 {[%clk
0:01:17.3]} 29... d4 {[%clk 0:00:32]} 30. N5xd4 {[%clk 0:01:06.2]} 30... Nb5
{[%clk 0:00:28.9]} 31. Nxb5 {[%clk 0:01:00]} 31... Qxf3 {[%clk 0:00:27.6]} 32.
a7 {[%clk 0:00:58.9]} 32... Ra8 {[%clk 0:00:22.1]} 33. Nc7 {[%clk 0:00:55.8]}
33... Rxc7 {[%clk 0:00:20]} 34. Qxc7 {[%clk 0:00:56.3]} 34... Qxh3 {[%clk
0:00:20.5]} 35. Qb7 {[%clk 0:00:44.2]} 35... Qxg4+ {[%clk 0:00:17.4]} 36. Qg2
{[%clk 0:00:44]} 36... Qxg2+ {[%clk 0:00:14.4]} 37. Kxg2 {[%clk 0:00:44.9]}
37... fxe5 {[%clk 0:00:13.6]} 38. Rc7 {[%clk 0:00:39.8]} 38... Bd6 {[%clk
0:00:13.2]} 39. Rd7 {[%clk 0:00:37.7]} 39... Bb4 {[%clk 0:00:11.3]} 40. Rb1
{[%clk 0:00:34]} 40... Bc3 {[%clk 0:00:10.9]} 41. Rb8 {[%clk 0:00:31]} 1-0

[Event "*** Titled Tuesday Blitz"]
[Site "Chess.com"]
[Date "2021.02.02"]
[Round "4"]
[White "Reader777"]
[Black "KyronGriffith"]
[Result "1-0"]
[WhiteElo "2790"]
[BlackElo "2517"]
[TimeControl "180+1"]
[EndTime "10:41:56 PST"]
[Termination "Reader777 won by resignation"]

1. d4 {[%clk 0:03:00.9]} 1... Nf6 {[%clk 0:02:58.4]} 2. c4 {[%clk 0:03:01.2]}
2... g6 {[%clk 0:02:56.5]} 3. Nc3 {[%clk 0:03:00.3]} 3... Bg7 {[%clk 0:02:55.6]}
4. e4 {[%clk 0:03:00.3]} 4... d6 {[%clk 0:02:54]} 5. f4 {[%clk 0:03:00.5]} 5...
O-O {[%clk 0:02:52.5]} 6. Nf3 {[%clk 0:03:00.8]} 6... c5 {[%clk 0:02:53]} 7. d5
{[%clk 0:03:00.7]} 7... e6 {[%clk 0:02:53.5]} 8. Be2 {[%clk 0:03:00.3]} 8...
exd5 {[%clk 0:02:51.2]} 9. cxd5 {[%clk 0:03:00.4]} 9... Bg4 {[%clk 0:02:45.5]}
10. O-O {[%clk 0:02:59.2]} 10... Nbd7 {[%clk 0:02:35.3]} 11. h3 {[%clk
0:02:48.6]} 11... Bxf3 {[%clk 0:02:34.5]} 12. Bxf3 {[%clk 0:02:49.2]} 12... Re8
{[%clk 0:02:34]} 13. g4 {[%clk 0:02:47.5]} 13... b5 {[%clk 0:02:29]} 14. g5
{[%clk 0:02:25.7]} 14... b4 {[%clk 0:02:25.7]} 15. gxf6 {[%clk 0:02:23.7]} 15...
Nxf6 {[%clk 0:02:26.6]} 16. Ne2 {[%clk 0:02:14.6]} 16... Nxe4 {[%clk 0:02:26.4]}
17. Qd3 {[%clk 0:02:10.3]} 17... f5 {[%clk 0:02:16.8]} 18. Bxe4 {[%clk
0:02:00.8]} 18... Rxe4 {[%clk 0:02:10.8]} 19. Ng3 {[%clk 0:01:57.7]} 19... Rd4
{[%clk 0:02:08.7]} 20. Qf3 {[%clk 0:01:57.7]} 20... Qh4 {[%clk 0:02:05.1]} 21.
Be3 {[%clk 0:01:48.3]} 21... Rd3 {[%clk 0:02:01.6]} 22. Rad1 {[%clk 0:01:46.4]}
22... Rxd1 {[%clk 0:01:59.5]} 23. Rxd1 {[%clk 0:01:46.5]} 23... Bxb2 {[%clk
0:02:00.1]} 24. Kg2 {[%clk 0:01:46.5]} 24... Re8 {[%clk 0:01:59.2]} 25. Bf2
{[%clk 0:01:38.3]} 25... Qf6 {[%clk 0:01:46.9]} 26. Qd3 {[%clk 0:01:38.1]} 26...
Qc3 {[%clk 0:01:40.2]} 27. Qb5 {[%clk 0:01:36.9]} 27... Kf8 {[%clk 0:01:31.6]}
28. Qd7 {[%clk 0:01:34]} 28... Qf6 {[%clk 0:01:22.3]} 29. Qxa7 {[%clk
0:01:24.2]} 29... c4 {[%clk 0:01:21.7]} 30. Bd4 {[%clk 0:01:12.3]} 30... Bxd4
{[%clk 0:01:21.5]} 31. Qxd4 {[%clk 0:01:07.6]} 31... Qxd4 {[%clk 0:01:19.6]} 32.
Rxd4 {[%clk 0:01:08.2]} 32... Rc8 {[%clk 0:01:14.8]} 33. Ne2 {[%clk 0:01:01.2]}
33... Kf7 {[%clk 0:01:14.1]} 34. Kf3 {[%clk 0:01:00.8]} 34... Kf6 {[%clk
0:01:13.9]} 35. Ke3 {[%clk 0:01:00.7]} 35... h6 {[%clk 0:01:14]} 36. h4 {[%clk
0:00:57.7]} 36... Re8+ {[%clk 0:01:12.6]} 37. Kd2 {[%clk 0:00:56.1]} 37... c3+
{[%clk 0:01:10.3]} 38. Kd3 {[%clk 0:00:54.5]} 38... Rb8 {[%clk 0:01:00.4]} 39.
Kc2 {[%clk 0:00:53]} 39... Re8 {[%clk 0:00:55.1]} 40. Nc1 {[%clk 0:00:38.7]}
40... Re4 {[%clk 0:00:47.2]} 41. Rxe4 {[%clk 0:00:22.8]} 41... fxe4 {[%clk
0:00:48.1]} 42. Kb3 {[%clk 0:00:23.1]} 42... Kf5 {[%clk 0:00:48.7]} 43. Kxb4
{[%clk 0:00:19.7]} 43... Kxf4 {[%clk 0:00:49.4]} 44. a4 {[%clk 0:00:19.5]} 44...
g5 {[%clk 0:00:50.3]} 45. hxg5 {[%clk 0:00:18.7]} 45... hxg5 {[%clk 0:00:51.2]}
46. a5 {[%clk 0:00:18.8]} 46... g4 {[%clk 0:00:52.1]} 47. a6 {[%clk 0:00:19]}
47... g3 {[%clk 0:00:52.8]} 48. a7 {[%clk 0:00:15.7]} 48... g2 {[%clk
0:00:53.4]} 49. a8=Q {[%clk 0:00:15.5]} 49... Kf3 {[%clk 0:00:45.9]} 50. Qa7
{[%clk 0:00:14.5]} 50... e3 {[%clk 0:00:45.7]} 51. Qf7+ {[%clk 0:00:14.2]} 51...
Kg3 {[%clk 0:00:43.1]} 52. Kxc3 {[%clk 0:00:14]} 52... Kh2 {[%clk 0:00:40.7]}
53. Ne2 {[%clk 0:00:13.6]} 1-0

[Event "*** Titled Tuesday Blitz"]
[Site "Chess.com"]
[Date "2021.02.02"]
[Round "4"]
[White "oneshot007"]
[Black "andrzej"]
[Result "1-0"]
[WhiteElo "2459"]
[BlackElo "2285"]
[TimeControl "180+1"]
[EndTime "10:41:56 PST"]
[Termination "oneshot007 won by checkmate"]

1. e4 {[%clk 0:03:00.9]} 1... c5 {[%clk 0:03:00.4]} 2. Nf3 {[%clk 0:03:01.3]}
2... e6 {[%clk 0:03:00.8]} 3. Nc3 {[%clk 0:03:01.2]} 3... Nc6 {[%clk 0:02:59.7]}
4. d4 {[%clk 0:03:01.6]} 4... cxd4 {[%clk 0:03:00]} 5. Nxd4 {[%clk 0:03:02.5]}
5... Nf6 {[%clk 0:03:00.4]} 6. Nxc6 {[%clk 0:03:02.7]} 6... bxc6 {[%clk
0:02:59.9]} 7. e5 {[%clk 0:03:03.3]} 7... Nd5 {[%clk 0:03:00.4]} 8. Ne4 {[%clk
0:03:04]} 8... c5 {[%clk 0:02:50]} 9. Be2 {[%clk 0:02:39.4]} 9... Bb7 {[%clk
0:02:47.3]} 10. O-O {[%clk 0:02:39]} 10... Qb8 {[%clk 0:02:39.9]} 11. f4 {[%clk
0:02:38.3]} 11... Be7 {[%clk 0:02:38]} 12. Bf3 {[%clk 0:02:28]} 12... O-O {[%clk
0:02:34.6]} 13. c4 {[%clk 0:02:27.3]} 13... Nb6 {[%clk 0:02:10]} 14. Be3 {[%clk
0:02:26.9]} 14... Qc7 {[%clk 0:02:06.7]} 15. b3 {[%clk 0:02:25.9]} 15... Rad8
{[%clk 0:02:00.6]} 16. Qe1 {[%clk 0:02:21.6]} 16... Bxe4 {[%clk 0:01:42.6]} 17.
Bxe4 {[%clk 0:02:21.4]} 17... f5 {[%clk 0:01:43.1]} 18. Bf3 {[%clk 0:02:18.5]}
18... Kh8 {[%clk 0:01:43.2]} 19. Rd1 {[%clk 0:02:18]} 19... Rg8 {[%clk
0:01:35.8]} 20. Qf2 {[%clk 0:02:18]} 20... g5 {[%clk 0:01:30.4]} 21. fxg5 {[%clk
0:02:14.4]} 21... Qxe5 {[%clk 0:01:19.1]} 22. h4 {[%clk 0:02:14.4]} 22... h6
{[%clk 0:01:05.5]} 23. Bc1 {[%clk 0:02:13.9]} 23... Kh7 {[%clk 0:00:58.5]} 24.
gxh6 {[%clk 0:01:41.2]} 24... Bd6 {[%clk 0:00:46.7]} 25. Rxd6 {[%clk 0:01:31.2]}
25... Qxd6 {[%clk 0:00:47.6]} 26. Rd1 {[%clk 0:01:22.9]} 26... Qe5 {[%clk
0:00:47.2]} 27. Bb2 {[%clk 0:01:13.8]} 27... Qf4 {[%clk 0:00:46.7]} 28. Qxc5
{[%clk 0:01:13.9]} 28... Qxf3 {[%clk 0:00:32.3]} 29. Qe7+ {[%clk 0:00:41.3]}
29... Kxh6 {[%clk 0:00:31.9]} 30. Qf6+ {[%clk 0:00:41]} 30... Kh7 {[%clk
0:00:24.4]} 31. Qf7+ {[%clk 0:00:37.3]} 31... Kh6 {[%clk 0:00:24.4]} 32. Bc1+
{[%clk 0:00:35.1]} 32... f4 {[%clk 0:00:09.9]} 33. Bxf4+ {[%clk 0:00:34.7]}
33... Qxf4 {[%clk 0:00:09.6]} 34. Qxf4+ {[%clk 0:00:35.6]} 34... Kh7 {[%clk
0:00:10]} 35. Qf7+ {[%clk 0:00:32]} 35... Kh6 {[%clk 0:00:09.7]} 36. a4 {[%clk
0:00:32]} 36... Rdf8 {[%clk 0:00:09]} 37. Qe7 {[%clk 0:00:32.3]} 37... Rf4
{[%clk 0:00:04.3]} 38. a5 {[%clk 0:00:31.5]} 38... Nc8 {[%clk 0:00:04.4]} 39.
Qxd7 {[%clk 0:00:29]} 39... Rfg4 {[%clk 0:00:04.1]} 40. Qxe6+ {[%clk 0:00:29.1]}
40... Kh5 {[%clk 0:00:04.5]} 41. Rd5+ {[%clk 0:00:28.9]} 41... Kxh4 {[%clk
0:00:05.1]} 42. Qh6+ {[%clk 0:00:29.5]} 42... Kg3 {[%clk 0:00:05.5]} 43. Rd3#
{[%clk 0:00:29.9]} 1-0

[Event "*** Titled Tuesday Blitz"]
[Site "Chess.com"]
[Date "2021.02.02"]
[Round "4"]
[White "Ave_Mariia"]
[Black "Ladislav1969"]
[Result "1-0"]
[WhiteElo "2476"]
[BlackElo "2308"]
[TimeControl "180+1"]
[EndTime "10:41:59 PST"]
[Termination "Ave_Mariia won on time"]

1. d4 {[%clk 0:03:00.9]} 1... Nf6 {[%clk 0:03:00]} 2. c4 {[%clk 0:03:00.1]} 2...
g6 {[%clk 0:03:00.6]} 3. Nc3 {[%clk 0:02:59.8]} 3... d5 {[%clk 0:03:01.3]} 4.
cxd5 {[%clk 0:03:00]} 4... Nxd5 {[%clk 0:03:02.2]} 5. Bd2 {[%clk 0:03:00.2]}
5... Bg7 {[%clk 0:03:00.7]} 6. e4 {[%clk 0:03:00.4]} 6... Nxc3 {[%clk
0:02:59.7]} 7. Bxc3 {[%clk 0:03:01.3]} 7... c5 {[%clk 0:02:59.9]} 8. d5 {[%clk
0:03:01.7]} 8... Bxc3+ {[%clk 0:02:52.2]} 9. bxc3 {[%clk 0:03:02.6]} 9... e6
{[%clk 0:02:43.7]} 10. Qd2 {[%clk 0:02:52.6]} 10... exd5 {[%clk 0:02:27.7]} 11.
exd5 {[%clk 0:02:42.6]} 11... O-O {[%clk 0:02:27.3]} 12. Nf3 {[%clk 0:02:37.3]}
12... Nd7 {[%clk 0:02:09.6]} 13. Be2 {[%clk 0:02:33.5]} 13... Nf6 {[%clk
0:02:09.5]} 14. Rd1 {[%clk 0:02:29.6]} 14... Ne4 {[%clk 0:02:07.6]} 15. Qc1
{[%clk 0:02:22.4]} 15... Qf6 {[%clk 0:02:06]} 16. Rd3 {[%clk 0:02:09.9]} 16...
Re8 {[%clk 0:02:03.5]} 17. O-O {[%clk 0:02:06.4]} 17... Nxc3 {[%clk 0:02:00.5]}
18. Rxc3 {[%clk 0:01:58]} 18... Rxe2 {[%clk 0:02:00]} 19. Rxc5 {[%clk
0:01:58.7]} 19... Bg4 {[%clk 0:01:56.9]} 20. Ng5 {[%clk 0:01:51.9]} 20... h6
{[%clk 0:01:47.2]} 21. Nxf7 {[%clk 0:01:50]} 21... Qxf7 {[%clk 0:01:41]} 22. Qc4
{[%clk 0:01:47.4]} 22... Bh5 {[%clk 0:01:18.5]} 23. Rc7 {[%clk 0:01:40.6]} 23...
Re7 {[%clk 0:01:18.2]} 24. Rxe7 {[%clk 0:01:37.4]} 24... Qxe7 {[%clk 0:01:18.5]}
25. g4 {[%clk 0:01:37.6]} 25... Qg5 {[%clk 0:01:15.8]} 26. h3 {[%clk 0:01:33.3]}
26... Rf8 {[%clk 0:01:11.7]} 27. d6+ {[%clk 0:01:28.5]} 27... Kh8 {[%clk
0:01:07.2]} 28. d7 {[%clk 0:01:22.4]} 28... Qd2 {[%clk 0:00:47.6]} 29. Qe6
{[%clk 0:01:15.6]} 29... Bxg4 {[%clk 0:00:34.6]} 30. hxg4 {[%clk 0:01:12.2]}
30... Qd4 {[%clk 0:00:30.5]} 31. Kg2 {[%clk 0:01:08.6]} 31... h5 {[%clk
0:00:27.4]} 32. Qxg6 {[%clk 0:00:49.5]} 32... Qd5+ {[%clk 0:00:19.5]} 33. Kg1
{[%clk 0:00:45.4]} 33... hxg4 {[%clk 0:00:19.1]} 34. Qe8 {[%clk 0:00:41]} 34...
Kg8 {[%clk 0:00:17.1]} 35. Re1 {[%clk 0:00:40.3]} 35... g3 {[%clk 0:00:13.6]}
36. fxg3 {[%clk 0:00:37.3]} 36... Qd4+ {[%clk 0:00:11.7]} 37. Kh1 {[%clk
0:00:37.2]} 37... Qd5+ {[%clk 0:00:11.6]} 38. Kh2 {[%clk 0:00:34.5]} 38... Qd2+
{[%clk 0:00:09.9]} 39. Re2 {[%clk 0:00:33]} 39... Qh6+ {[%clk 0:00:09.4]} 40.
Kg2 {[%clk 0:00:28.1]} 40... Qc6+ {[%clk 0:00:09.5]} 41. Re4 {[%clk 0:00:26.1]}
41... Qc2+ {[%clk 0:00:04.7]} 42. Kh3 {[%clk 0:00:26.3]} 1-0

[Event "*** Titled Tuesday Blitz"]
[Site "Chess.com"]
[Date "2021.02.02"]
[Round "4"]
[White "Gabrielian_Artur"]
[Black "ChessWarrior7197"]
[Result "1/2-1/2"]
[WhiteElo "2787"]
[BlackElo "2907"]
[TimeControl "180+1"]
[EndTime "10:42:00 PST"]
[Termination "Game drawn by repetition"]

1. c4 {[%clk 0:03:00.9]} 1... e6 {[%clk 0:02:59.8]} 2. Nf3 {[%clk 0:02:59.2]}
2... d5 {[%clk 0:03:00.2]} 3. e3 {[%clk 0:02:58.7]} 3... Nf6 {[%clk 0:03:00.4]}
4. b3 {[%clk 0:02:57.6]} 4... c5 {[%clk 0:02:59]} 5. Bb2 {[%clk 0:02:56.8]} 5...
Nc6 {[%clk 0:02:56.4]} 6. cxd5 {[%clk 0:02:56.3]} 6... exd5 {[%clk 0:02:57.1]}
7. Bb5 {[%clk 0:02:55.8]} 7... Bd6 {[%clk 0:02:57.1]} 8. Nc3 {[%clk 0:02:43.5]}
8... O-O {[%clk 0:02:55.8]} 9. Ne2 {[%clk 0:02:41.4]} 9... Bg4 {[%clk
0:02:48.8]} 10. h3 {[%clk 0:02:38.2]} 10... Bxf3 {[%clk 0:02:45.7]} 11. gxf3
{[%clk 0:02:38.3]} 11... Ne5 {[%clk 0:02:40.8]} 12. Ng3 {[%clk 0:02:21.6]} 12...
c4 {[%clk 0:02:40.7]} 13. Bxe5 {[%clk 0:02:10.6]} 13... Bxe5 {[%clk 0:02:41.6]}
14. bxc4 {[%clk 0:02:06.4]} 14... a6 {[%clk 0:02:41.6]} 15. Ba4 {[%clk
0:02:05.8]} 15... dxc4 {[%clk 0:02:41.9]} 16. Rb1 {[%clk 0:02:03.7]} 16... b5
{[%clk 0:02:41.9]} 17. Bc2 {[%clk 0:02:04]} 17... Bxg3 {[%clk 0:02:33.6]} 18.
fxg3 {[%clk 0:02:04]} 18... Qd6 {[%clk 0:02:34.5]} 19. f4 {[%clk 0:01:53.3]}
19... Rad8 {[%clk 0:02:34.9]} 20. Qe2 {[%clk 0:01:46.5]} 20... Rfe8 {[%clk
0:02:35.2]} 21. Rh2 {[%clk 0:01:25.7]} 21... c3 {[%clk 0:02:34.2]} 22. Rd1
{[%clk 0:01:05.9]} 22... Nd5 {[%clk 0:02:27.5]} 23. Bb3 {[%clk 0:00:51.7]} 23...
Qc5 {[%clk 0:02:08.8]} 24. Bxd5 {[%clk 0:00:41.4]} 24... Rxd5 {[%clk 0:02:09.7]}
25. Kf2 {[%clk 0:00:38.5]} 25... b4 {[%clk 0:01:52.7]} 26. d4 {[%clk 0:00:34.4]}
26... Qc6 {[%clk 0:01:46.9]} 27. Kg1 {[%clk 0:00:31.2]} 27... f5 {[%clk
0:01:44.6]} 28. g4 {[%clk 0:00:28.9]} 28... a5 {[%clk 0:01:44.5]} 29. gxf5
{[%clk 0:00:28.5]} 29... Rxf5 {[%clk 0:01:45.4]} 30. Qd3 {[%clk 0:00:24.8]}
30... Qd5 {[%clk 0:01:35.1]} 31. a3 {[%clk 0:00:20.3]} 31... Rf6 {[%clk
0:01:32.9]} 32. Rg2 {[%clk 0:00:19.7]} 32... Rc6 {[%clk 0:01:30.1]} 33. axb4
{[%clk 0:00:15]} 33... axb4 {[%clk 0:01:29.9]} 34. Ra1 {[%clk 0:00:15.5]} 34...
Rc7 {[%clk 0:01:19.4]} 35. Rg5 {[%clk 0:00:13.8]} 35... Qf3 {[%clk 0:01:19.9]}
36. Re5 {[%clk 0:00:14]} 36... Qg3+ {[%clk 0:01:16.6]} 37. Kf1 {[%clk
0:00:13.5]} 37... Qxh3+ {[%clk 0:01:17.5]} 38. Kf2 {[%clk 0:00:13.9]} 38... Rf8
{[%clk 0:01:14]} 39. Rg1 {[%clk 0:00:11.4]} 39... Rxf4+ {[%clk 0:01:13.3]} 40.
Ke1 {[%clk 0:00:09.3]} 40... c2 {[%clk 0:01:11]} 41. Qb3+ {[%clk 0:00:07.2]}
41... Kf8 {[%clk 0:00:50.5]} 42. Qxb4+ {[%clk 0:00:07.6]} 42... Kf7 {[%clk
0:00:51.2]} 43. Qb3+ {[%clk 0:00:08.1]} 43... Kf8 {[%clk 0:00:45.2]} 44. Qb4+
{[%clk 0:00:07]} 44... Kf7 {[%clk 0:00:39.3]} 45. Qb3+ {[%clk 0:00:06.6]} 45...
Kf8 {[%clk 0:00:33.1]} 46. Qb4+ {[%clk 0:00:06.8]} 1/2-1/2